{"text_format":"1","workbook":"xlsx","n_sheets":9,"sheets":["設定","申込手順","入力シート","団体メンバー印刷","申込書＿団体","申込書＿個人","プログラム男子","申込選手一覧（個人）","申込選手一覧（個人_フィルター関数)"],"not_rendered":{"charts":0,"images":2,"macros":1,"external_links":0,"defined_names":6,"comments":0,"pivot_tables":0},"unopened":[],"bounds":{"document_bytes":16777216,"sheet_cells":100000,"rows_first":2000,"rows_last":500,"rows_between":2000,"halvings":0,"cell_chars":16384,"cell_head_chars":4096},"cells_cut":0,"cells_raw":0,"read":"whole","date_system":"1900"}

{"sheet":"設定","index":0,"n_rows":253,"n_cols":31,"rows_kept":253,"cut":false,"hidden":true,"merged":[]}
["学年",null,"段位",null,"西暦",null,"月",null,"日",null,"中学階級",null,"女子階級",null,"番号","校名","校名略",null,"申込締切年","申込締切月","申込締切日",null,"Ver",null,"大会回高校","中学",null,"中学校名","高校名","高校略称","中学略称"]
[1,null,"無",null,{"$f":"YEAR(TODAY())-F2","v":2006},20,1,null,1,null,"2年生男子",null,48,null,301,"旭","旭",null,2026,4,9,null,20260308,null,73,{"$f":"Y2-44","v":29},null,"上宮学園中学校","上宮高等学校","上宮","上宮学園"]
[2,null,"初",null,2007,19,2,null,2,null,"3年生男子",null,52,null,302,"枚方なぎさ","枚方なぎ",null,null,null,null,null,null,null,null,null,null,"中学校","英真学園高等学校","英真","英真"]
[3,null,"弐",null,2008,18,3,null,3,null,"中学生女子",null,57,null,303,"大手前","大 手 前",null,null,null,null,null,null,null,null,null,null,"中学校","大阪高等学校","大阪","大阪"]
[null,null,"参",null,2009,17,4,null,4,null,null,null,63,null,304,"大阪わかば","わ か ば",null,null,null,null,null,null,null,null,null,null,"中学校","大阪偕星学園高等学校","大阪偕星","大阪偕星"]
[null,null,null,null,2010,16,5,null,5,null,null,null,70,null,305,"門真なみはや","門真なみ",null,null,null,null,null,null,null,null,null,null,"大阪学芸高等学校附属中学校","大阪学芸高等学校","大阪学芸","学芸附属"]
[null,null,null,null,2011,15,6,null,6,null,null,null,78,null,306,"門真西","門 真 西",null,null,null,null,null,null,null,null,null,null,"大阪学芸中等教育学校","大阪学芸中等教育学校","学芸中等","学芸中等"]
[null,null,null,null,2012,14,7,null,7,null,null,null,"78+",null,308,"香里丘","香 里 丘",null,null,null,null,null,null,null,null,null,null,"関西大倉中学校","関西大倉高等学校","関西大倉","関西大倉"]
[null,null,null,null,2013,13,8,null,8,null,null,null,null,null,309,"高津","高　　津",null,null,null,null,null,null,null,null,null,null,"関西創価中学校","関西創価高等学校","関西創価","関西創価"]
[null,null,null,null,2014,12,9,null,9,null,null,null,null,null,310,"四條畷","四 條 畷",null,null,null,null,null,null,null,null,null,null,"関西大学第一中学校","関西大学第一高等学校","関大一","関大一"]
[null,null,null,null,2015,11,10,null,10,null,null,null,null,null,311,"清水谷","清 水 谷",null,null,null,null,null,null,null,null,null,null,"関西大学北陽中学校","関西大学北陽高等学校","関大北陽","関大北陽"]
[null,null,null,null,null,null,11,null,11,null,null,null,null,null,312,"緑風冠","緑 風 冠",null,null,null,null,null,null,null,null,null,null,"近畿大学附属中学校","近畿大学附属高等学校","近大附属","近大附属"]
[null,null,null,null,null,null,12,null,12,null,null,null,null,null,313,"かわち野","かわち野",null,null,null,null,null,null,null,null,null,null,"建国中学校","建国高等学校","建国","建国"]
[null,null,null,null,null,8,null,null,13,null,null,null,null,null,314,"長尾","長　　尾",null,null,null,null,null,null,null,null,null,null,"中学校","興國高等学校","興國","興國"]
[null,null,null,null,null,null,null,null,14,null,null,null,null,null,315,"西寝屋川","西寝屋川",null,null,null,null,null,null,null,null,null,null,"中学校","大阪国際滝井高等学校","国際滝井","国際滝井"]
[null,null,null,null,null,null,null,null,15,null,null,null,null,null,316,"寝屋川","寝 屋 川",null,null,null,null,null,null,null,null,null,null,"金光大阪中学校","金光大阪高等学校","金光大阪","金光大阪"]
[null,null,null,null,null,null,null,null,16,null,null,null,null,null,317,"北かわち皐が丘","北かわち",null,null,null,null,null,null,null,null,null,null,"中学校","金光藤蔭高等学校","金光藤蔭","金光藤蔭"]
[null,null,null,null,null,null,null,null,17,null,null,null,null,null,318,"枚方","枚　　方",null,null,null,null,null,null,null,null,null,null,"金光八尾中学校","金光八尾高等学校","金光八尾","金光八尾"]
[null,null,null,null,null,null,null,null,18,null,null,null,null,null,319,"牧野","牧　　野",null,null,null,null,null,null,null,null,null,null,"常翔学園中学校","常翔学園高等学校","常翔学園","常翔学園"]
[null,null,null,null,null,null,null,null,19,null,null,null,null,null,322,"芦間","芦　　間",null,null,null,null,null,null,null,null,null,null,"常翔啓光中学校","常翔啓光高等学校","常翔啓光","常翔啓光"]
[null,null,null,null,null,null,null,null,20,null,null,null,null,null,323,"守口東","守 口 東",null,null,null,null,null,null,null,null,null,null,"中学校","大阪商業大学堺高等学校","商大堺","商大堺"]
[null,null,null,null,null,null,null,null,21,null,null,null,null,null,324,"夕陽丘","夕 陽 丘",null,null,null,null,null,null,null,null,null,null,"昇陽中学校","昇陽高等学校","昇陽","昇陽"]
[null,null,null,null,null,null,null,null,22,null,null,null,null,null,325,"城東工科・東大阪みらい工科","城東工科",null,null,null,null,null,null,null,null,null,null,"大阪星光学院中学校","大阪星光学院高等学校","星光学院","星光学院"]
[null,null,null,null,null,null,null,null,23,null,null,null,null,null,326,"成城","成　　城",null,null,null,null,null,null,null,null,null,null,"中学校","星翔高等学校","星翔","星翔"]
[null,null,null,null,null,null,null,null,24,null,null,null,null,null,327,"淀川工科","淀川工科",null,null,null,null,null,null,null,null,null,null,"清風中学校","清風高等学校","清風","清風"]
[null,null,null,null,null,null,null,null,25,null,null,null,null,null,329,"桜和","桜　　和",null,null,null,null,null,null,null,null,null,null,"大阪産業大学附属中学校","大阪産業大学附属高等学校","大産大附","大産大附"]
[null,null,null,null,null,null,null,null,26,null,null,null,null,null,330,"いちりつ","いちりつ",null,null,null,null,null,null,null,null,null,null,"中学校","大商学園高等学校","大商学園","大商学園"]
[null,null,null,null,null,null,null,null,27,null,null,null,null,null,331,"桜宮","桜　　宮",null,null,null,null,null,null,null,null,null,null,"中学校","大阪商業大学高等学校","大商大","大商大"]
[null,null,null,null,null,null,null,null,28,null,null,null,null,null,332,"汎愛","汎　　愛",null,null,null,null,null,null,null,null,null,null,"中学校","太成学院大学高等学校","太成学院","太成学院"]
[null,null,null,null,null,null,null,null,29,null,null,null,null,null,333,"東","東",null,null,null,null,null,null,null,null,null,null,"大阪体育大学浪商中学校","大阪体育大学浪商高等学校","体大浪商","体大浪商"]
[null,null,null,null,null,null,null,null,30,null,null,null,null,null,335,"生野工業","生野工業",null,null,null,null,null,null,null,null,null,null,"中学校","大阪電気通信大学高等学校","電通大","電通大"]
[null,null,null,null,null,null,null,null,31,null,null,null,null,null,336,"都島工業","都島工業",null,null,null,null,null,null,null,null,null,null,"東海大学大阪仰星高等学校中等部","東海大学付属大阪仰星高等学校","東海仰星","東海仰星"]
[null,null,null,null,null,null,null,null,null,null,null,null,null,null,338,"常翔学園","常翔学園",null,null,null,null,null,null,null,null,null,null,"中学校","東大阪大学柏原高等学校","東大柏原","東大柏原"]
[null,null,null,null,null,null,null,null,null,null,null,null,null,null,339,"大阪産業大学附属","大産大附",null,null,null,null,null,null,null,null,null,null,"中学校","東大阪大学敬愛高等学校","東大敬愛","東大敬愛"]
[null,null,null,null,null,null,null,null,null,null,null,null,null,null,340,"追手門学院大手前","追手門大",null,null,null,null,null,null,null,null,null,null,"浪速中学校","浪速高等学校","浪速","浪速"]
[null,null,null,null,null,null,null,null,null,null,null,null,null,null,341,"常翔啓光学園","常翔啓光",null,null,null,null,null,null,null,null,null,null,"中学校","阪南大学高等学校","阪南大学","阪南大学"]
[null,null,null,null,null,null,null,null,null,null,null,null,null,null,342,"大阪偕星学園","大阪偕星",null,null,null,null,null,null,null,null,null,null,"中学校","箕面学園高等学校","箕面学園","箕面学園"]
[null,null,null,null,null,null,null,null,null,null,null,null,null,null,343,"太成学院大学","太成学院",null,null,null,null,null,null,null,null,null,null,"履正社学園豊中中学校","履正社高等学校","履正社","履正社"]
[null,null,null,null,null,null,null,null,null,null,null,null,null,null,344,"大阪電気通信大学","電 通 大",null,null,null,null,null,null,null,null,null,null,"四條畷学園中学校","四條畷学園高等学校","四條畷","四條畷"]
[null,null,null,null,null,null,null,null,null,null,null,null,null,null,345,"同志社香里","同志社香",null,null,null,null,null,null,null,null,null,null,"同志社香里中学校","同志社香里高等学校","同志社香","同志社香"]
[null,null,null,null,null,null,null,null,null,null,null,null,null,null,346,"開明","開　　明",null,null,null,null,null,null,null,null,null,null,"金蘭千里中学校","金蘭千里高等学校","金蘭千里","金蘭千里"]
[null,null,null,null,null,null,null,null,null,null,null,null,null,null,347,"東海大学付属大阪仰星","東海仰星",null,null,null,null,null,null,null,null,null,null,"清教学園中学校","清教学園高等学校","清教学園","清教学園"]
[null,null,null,null,null,null,null,null,null,null,null,null,null,null,348,"大正白陵","大正白陵"]
[null,null,null,null,null,null,null,null,null,null,null,null,null,null,349,"和泉","和　　泉"]
[null,null,null,null,null,null,null,null,null,null,null,null,null,null,350,"泉大津","泉 大 津"]
[null,null,null,null,null,null,null,null,null,null,null,null,null,null,352,"市岡","市　　岡"]
[null,null,null,null,null,null,null,null,null,null,null,null,null,null,353,"今宮","今　　宮"]
[null,null,null,null,null,null,null,null,null,null,null,null,null,null,354,"鳳","鳳"]
[null,null,null,null,null,null,null,null,null,null,null,null,null,null,355,"貝塚","貝　　塚"]
[null,null,null,null,null,null,null,null,null,null,null,null,null,null,356,"貝塚南","貝 塚 南"]
[null,null,null,null,null,null,null,null,null,null,null,null,null,null,357,"金岡","金　　岡"]
[null,null,null,null,null,null,null,null,null,null,null,null,null,null,358,"岸和田","岸 和 田"]
[null,null,null,null,null,null,null,null,null,null,null,null,null,null,359,"港南造形","港南造形"]
[null,null,null,null,null,null,null,null,null,null,null,null,null,null,360,"久米田","久 米 田"]
[null,null,null,null,null,null,null,null,null,null,null,null,null,null,361,"堺上","堺　　上"]
[null,null,null,null,null,null,null,null,null,null,null,null,null,null,362,"堺西","堺　　西"]
[null,null,null,null,null,null,null,null,null,null,null,null,null,null,363,"堺東","堺　　東"]
[null,null,null,null,null,null,null,null,null,null,null,null,null,null,364,"佐野","佐　　野"]
[null,null,null,null,null,null,null,null,null,null,null,null,null,null,365,"狭山","狭　　山"]
[null,null,null,null,null,null,null,null,null,null,null,null,null,null,366,"信太","信　　太"]
[null,null,null,null,null,null,null,null,null,null,null,null,null,null,368,"りんくう翔南","りんくう"]
[null,null,null,null,null,null,null,null,null,null,null,null,null,null,369,"泉北","泉　　北"]
[null,null,null,null,null,null,null,null,null,null,null,null,null,null,370,"泉陽","泉　　陽"]
[null,null,null,null,null,null,null,null,null,null,null,null,null,null,372,"高石","高　　石"]
[null,null,null,null,null,null,null,null,null,null,null,null,null,null,373,"登美丘","登 美 丘"]
[null,null,null,null,null,null,null,null,null,null,null,null,null,null,374,"西成","西　　成"]
[null,null,null,null,null,null,null,null,null,null,null,null,null,null,376,"伯太","伯　　太"]
[null,null,null,null,null,null,null,null,null,null,null,null,null,null,377,"阪南","阪　　南"]
[null,null,null,null,null,null,null,null,null,null,null,null,null,null,378,"東百舌鳥","東百舌鳥"]
[null,null,null,null,null,null,null,null,null,null,null,null,null,null,379,"福泉","福　　泉"]
[null,null,null,null,null,null,null,null,null,null,null,null,null,null,380,"成美","成　　美"]
[null,null,null,null,null,null,null,null,null,null,null,null,null,null,381,"三国丘","三 国 丘"]
[null,null,null,null,null,null,null,null,null,null,null,null,null,null,382,"岬","岬"]
[null,null,null,null,null,null,null,null,null,null,null,null,null,null,383,"港","港"]
[null,null,null,null,null,null,null,null,null,null,null,null,null,null,384,"教育センター附属","センター"]
[null,null,null,null,null,null,null,null,null,null,null,null,null,null,386,"和泉総合","和泉総合"]
[null,null,null,null,null,null,null,null,null,null,null,null,null,null,387,"今宮工科","今宮工科"]
[null,null,null,null,null,null,null,null,null,null,null,null,null,null,388,"堺工科","堺 工 科"]
[null,null,null,null,null,null,null,null,null,null,null,null,null,null,389,"佐野工科","佐野工科"]
[null,null,null,null,null,null,null,null,null,null,null,null,null,null,390,"西野田工科","西野田工"]
[null,null,null,null,null,null,null,null,null,null,null,null,null,null,391,"日根野","日 根 野"]
[null,null,null,null,null,null,null,null,null,null,null,null,null,null,394,"泉尾工業","泉尾工業"]
[null,null,null,null,null,null,null,null,null,null,null,null,null,null,395,"岸和田市立産業","岸和田産"]
[null,null,null,null,null,null,null,null,null,null,null,null,null,null,396,"咲くやこの花","咲　　花"]
[null,null,null,null,null,null,null,null,null,null,null,null,null,null,397,"堺市立堺","堺市立堺"]
[null,null,null,null,null,null,null,null,null,null,null,null,null,null,398,"大阪商業大学堺","商 大 堺"]
[null,null,null,null,null,null,null,null,null,null,null,null,null,null,399,"大阪学芸","大阪学芸"]
[null,null,null,null,null,null,null,null,null,null,null,null,null,null,400,"清教学園","清教学園"]
[null,null,null,null,null,null,null,null,null,null,null,null,null,null,401,"浪速","浪　　速"]
[null,null,null,null,null,null,null,null,null,null,null,null,null,null,402,"利晶学園大阪立命館","初芝立命"]
[null,null,null,null,null,null,null,null,null,null,null,null,null,null,403,"清風南海","清風南海"]
[null,null,null,null,null,null,null,null,null,null,null,null,null,null,404,"帝塚山学院泉ケ丘","帝塚山泉"]
[null,null,null,null,null,null,null,null,null,null,null,null,null,null,405,"大阪金剛インターナショナル","大阪金剛"]
[null,null,null,null,null,null,null,null,null,null,null,null,null,null,406,"大阪体育大学浪商","体大浪商"]
[null,null,null,null,null,null,null,null,null,null,null,null,null,null,407,"大阪教育大学附属高等学校天王寺","教大天王"]
[null,null,null,null,null,null,null,null,null,null,null,null,null,null,408,"大阪教育大学附属高等学校平野","教大平野"]
[null,null,null,null,null,null,null,null,null,null,null,null,null,null,409,"阿倍野","阿 倍 野"]
[null,null,null,null,null,null,null,null,null,null,null,null,null,null,410,"生野","生　　野"]
[null,null,null,null,null,null,null,null,null,null,null,null,null,null,411,"みどり清朋","み ど り"]
[null,null,null,null,null,null,null,null,null,null,null,null,null,null,412,"大塚","大　　塚"]
[null,null,null,null,null,null,null,null,null,null,null,null,null,null,414,"河南","河　　南"]
[null,null,null,null,null,null,null,null,null,null,null,null,null,null,416,"金剛","金　　剛"]
[null,null,null,null,null,null,null,null,null,null,null,null,null,null,417,"住吉","住　　吉"]
[null,null,null,null,null,null,null,null,null,null,null,null,null,null,419,"天王寺","天 王 寺"]
[null,null,null,null,null,null,null,null,null,null,null,null,null,null,420,"富田林","富 田 林"]
[null,null,null,null,null,null,null,null,null,null,null,null,null,null,421,"長野","長　　野"]
[null,null,null,null,null,null,null,null,null,null,null,null,null,null,423,"長吉","長　　吉"]
[null,null,null,null,null,null,null,null,null,null,null,null,null,null,425,"花園","花　　園"]
[null,null,null,null,null,null,null,null,null,null,null,null,null,null,426,"懐風館","懐 風 館"]
[null,null,null,null,null,null,null,null,null,null,null,null,null,null,427,"東住吉","東 住 吉"]
[null,null,null,null,null,null,null,null,null,null,null,null,null,null,428,"平野","平　　野"]
[null,null,null,null,null,null,null,null,null,null,null,null,null,null,429,"藤井寺","藤 井 寺"]
[null,null,null,null,null,null,null,null,null,null,null,null,null,null,430,"布施","布　　施"]
[null,null,null,null,null,null,null,null,null,null,null,null,null,null,431,"布施北","布 施 北"]
[null,null,null,null,null,null,null,null,null,null,null,null,null,null,432,"松原","松　　原"]
[null,null,null,null,null,null,null,null,null,null,null,null,null,null,433,"美原","美　　原"]
[null,null,null,null,null,null,null,null,null,null,null,null,null,null,434,"八尾","八　　尾"]
[null,null,null,null,null,null,null,null,null,null,null,null,null,null,435,"八尾北","八 尾 北"]
[null,null,null,null,null,null,null,null,null,null,null,null,null,null,436,"八尾翠翔","八尾翠翔"]
[null,null,null,null,null,null,null,null,null,null,null,null,null,null,438,"山本","山　　本"]
[null,null,null,null,null,null,null,null,null,null,null,null,null,null,439,"枚岡樟風","牧岡樟風"]
[null,null,null,null,null,null,null,null,null,null,null,null,null,null,440,"農芸","農　　芸"]
[null,null,null,null,null,null,null,null,null,null,null,null,null,null,441,"東住吉総合","東住吉総"]
[null,null,null,null,null,null,null,null,null,null,null,null,null,null,442,"藤井寺工科","藤井寺工"]
[null,null,null,null,null,null,null,null,null,null,null,null,null,null,443,"布施工科","布施工科"]
[null,null,null,null,null,null,null,null,null,null,null,null,null,null,445,"日新","日　　新"]
[null,null,null,null,null,null,null,null,null,null,null,null,null,null,446,"上宮","上　　宮"]
[null,null,null,null,null,null,null,null,null,null,null,null,null,null,447,"金光八尾","金光八尾"]
[null,null,null,null,null,null,null,null,null,null,null,null,null,null,448,"阪南大学","阪南大学"]
[null,null,null,null,null,null,null,null,null,null,null,null,null,null,449,"大阪商業大学","大 商 大"]
[null,null,null,null,null,null,null,null,null,null,null,null,null,null,450,"東大阪大学柏原","東大柏原"]
[null,null,null,null,null,null,null,null,null,null,null,null,null,null,451,"近畿大学附属","近大附属"]
[null,null,null,null,null,null,null,null,null,null,null,null,null,null,452,"興國","興　　國"]
[null,null,null,null,null,null,null,null,null,null,null,null,null,null,454,"大阪星光学院","星光学院"]
[null,null,null,null,null,null,null,null,null,null,null,null,null,null,455,"清風","清　　風"]
[null,null,null,null,null,null,null,null,null,null,null,null,null,null,456,"ＰＬ学園","ＰＬ学園"]
[null,null,null,null,null,null,null,null,null,null,null,null,null,null,457,"桃山学院","桃山学院"]
[null,null,null,null,null,null,null,null,null,null,null,null,null,null,458,"芥川","芥　　川"]
[null,null,null,null,null,null,null,null,null,null,null,null,null,null,459,"阿武野","阿 武 野"]
[null,null,null,null,null,null,null,null,null,null,null,null,null,null,460,"池田","池　　田"]
[null,null,null,null,null,null,null,null,null,null,null,null,null,null,462,"茨木","茨　　木"]
[null,null,null,null,null,null,null,null,null,null,null,null,null,null,463,"茨木西","茨 木 西"]
[null,null,null,null,null,null,null,null,null,null,null,null,null,null,464,"北摂つばさ","北摂つば"]
[null,null,null,null,null,null,null,null,null,null,null,null,null,null,465,"園芸","園　　芸"]
[null,null,null,null,null,null,null,null,null,null,null,null,null,null,466,"春日丘","春 日 丘"]
[null,null,null,null,null,null,null,null,null,null,null,null,null,null,467,"北千里","北 千 里"]
[null,null,null,null,null,null,null,null,null,null,null,null,null,null,468,"北野","北　　野"]
[null,null,null,null,null,null,null,null,null,null,null,null,null,null,469,"柴島","柴　　島"]
[null,null,null,null,null,null,null,null,null,null,null,null,null,null,470,"桜塚","桜　　塚"]
[null,null,null,null,null,null,null,null,null,null,null,null,null,null,471,"渋谷","渋　　谷"]
[null,null,null,null,null,null,null,null,null,null,null,null,null,null,472,"金蘭千里","金蘭千里"]
[null,null,null,null,null,null,null,null,null,null,null,null,null,null,473,"槻の木","規 の 木"]
[null,null,null,null,null,null,null,null,null,null,null,null,null,null,476,"吹田","吹　　田"]
[null,null,null,null,null,null,null,null,null,null,null,null,null,null,477,"吹田東","吹 田 東"]
[null,null,null,null,null,null,null,null,null,null,null,null,null,null,478,"摂津","摂　　津"]
[null,null,null,null,null,null,null,null,null,null,null,null,null,null,479,"千里","千　　里"]
[null,null,null,null,null,null,null,null,null,null,null,null,null,null,480,"早稲田大阪","早稲田摂"]
[null,null,null,null,null,null,null,null,null,null,null,null,null,null,481,"高槻北","高 槻 北"]
[null,null,null,null,null,null,null,null,null,null,null,null,null,null,482,"豊島","豊　　島"]
[null,null,null,null,null,null,null,null,null,null,null,null,null,null,483,"豊中","豊　　中"]
[null,null,null,null,null,null,null,null,null,null,null,null,null,null,484,"大阪薫英女学院","大阪薫英"]
[null,null,null,null,null,null,null,null,null,null,null,null,null,null,486,"千里青雲","千里青雲"]
[null,null,null,null,null,null,null,null,null,null,null,null,null,null,487,"東淀川","東 淀 川"]
[null,null,null,null,null,null,null,null,null,null,null,null,null,null,488,"福井","福　　井"]
[null,null,null,null,null,null,null,null,null,null,null,null,null,null,489,"三島","三　　島"]
[null,null,null,null,null,null,null,null,null,null,null,null,null,null,490,"箕面","箕　　面"]
[null,null,null,null,null,null,null,null,null,null,null,null,null,null,491,"箕面東","箕 面 東"]
[null,null,null,null,null,null,null,null,null,null,null,null,null,null,492,"茨木工科","茨木工科"]
[null,null,null,null,null,null,null,null,null,null,null,null,null,null,493,"大冠","大　　冠"]
[null,null,null,null,null,null,null,null,null,null,null,null,null,null,494,"淀川清流","淀川清流"]
[null,null,null,null,null,null,null,null,null,null,null,null,null,null,495,"淀商業","淀　　商"]
[null,null,null,null,null,null,null,null,null,null,null,null,null,null,496,"東淀工業","東淀工業"]
[null,null,null,null,null,null,null,null,null,null,null,null,null,null,497,"大阪学院大学","大阪学院"]
[null,null,null,null,null,null,null,null,null,null,null,null,null,null,498,"大阪","大　　阪"]
[null,null,null,null,null,null,null,null,null,null,null,null,null,null,499,"大商学園","大商学園"]
[null,null,null,null,null,null,null,null,null,null,null,null,null,null,500,"追手門学院","追手門学"]
[null,null,null,null,null,null,null,null,null,null,null,null,null,null,501,"関西大倉","関西大倉"]
[null,null,null,null,null,null,null,null,null,null,null,null,null,null,502,"関西大学第一","関 大 一"]
[null,null,null,null,null,null,null,null,null,null,null,null,null,null,503,"金光大阪","金光大阪"]
[null,null,null,null,null,null,null,null,null,null,null,null,null,null,504,"高槻","高　　槻"]
[null,null,null,null,null,null,null,null,null,null,null,null,null,null,505,"星翔","星　　翔"]
[null,null,null,null,null,null,null,null,null,null,null,null,null,null,506,"履正社","履 正 社"]
[null,null,null,null,null,null,null,null,null,null,null,null,null,null,507,"関西大学北陽","関大北陽"]
[null,null,null,null,null,null,null,null,null,null,null,null,null,null,508,"箕面学園","箕面学園"]
[null,null,null,null,null,null,null,null,null,null,null,null,null,null,509,"箕面自由学園","箕面自由"]
[null,null,null,null,null,null,null,null,null,null,null,null,null,null,518,"堺工科","堺 工 科"]
[null,null,null,null,null,null,null,null,null,null,null,null,null,null,519,"三国丘","三 国 丘"]
[null,null,null,null,null,null,null,null,null,null,null,null,null,null,521,"大手前","大 手 前"]
[null,null,null,null,null,null,null,null,null,null,null,null,null,null,523,"都島第二工業","都島第二"]
[null,null,null,null,null,null,null,null,null,null,null,null,null,null,528,"今宮工科","今宮工科"]
[null,null,null,null,null,null,null,null,null,null,null,null,null,null,530,"西野田工科","西野田工"]
[null,null,null,null,null,null,null,null,null,null,null,null,null,null,531,"岸和田市立産業","岸和田産"]
[null,null,null,null,null,null,null,null,null,null,null,null,null,null,532,"堺市立堺","堺市立堺"]
[null,null,null,null,null,null,null,null,null,null,null,null,null,null,534,"和泉総合","和泉総合"]
[null,null,null,null,null,null,null,null,null,null,null,null,null,null,535,"佐野工科","佐野工科"]
[null,null,null,null,null,null,null,null,null,null,null,null,null,null,542,"日新","日　　新"]
[null,null,null,null,null,null,null,null,null,null,null,null,null,null,544,"桜塚","桜　　塚"]
[null,null,null,null,null,null,null,null,null,null,null,null,null,null,545,"春日丘","春 日 丘"]
[null,null,null,null,null,null,null,null,null,null,null,null,null,null,550,"建国","建　　国"]
[null,null,null,null,null,null,null,null,null,null,null,null,null,null,551,"豊中(能勢)","能　　勢"]
[null,null,null,null,null,null,null,null,null,null,null,null,null,null,553,"藤井寺工科","藤井寺工"]
[null,null,null,null,null,null,null,null,null,null,null,null,null,null,555,"野崎","野　　崎"]
[null,null,null,null,null,null,null,null,null,null,null,null,null,null,556,"関西創価","関西創価"]
[null,null,null,null,null,null,null,null,null,null,null,null,null,null,557,"プール学院","プール学"]
[null,null,null,null,null,null,null,null,null,null,null,null,null,null,558,"清明学院","清明学院"]
[null,null,null,null,null,null,null,null,null,null,null,null,null,null,560,"大阪ビジネスフロンティア","Ｏ Ｂ Ｆ"]
[null,null,null,null,null,null,null,null,null,null,null,null,null,null,562,"上宮太子","上宮太子"]
[null,null,null,null,null,null,null,null,null,null,null,null,null,null,563,"中央","中　　央"]
[null,null,null,null,null,null,null,null,null,null,null,null,null,null,564,"大阪学芸中等教育","学芸中等"]
[null,null,null,null,null,null,null,null,null,null,null,null,null,null,565,"鶴見商業","鶴見商業"]
[null,null,null,null,null,null,null,null,null,null,null,null,null,null,569,"東大阪大学敬愛","東大敬愛"]
[null,null,null,null,null,null,null,null,null,null,null,null,null,null,570,"東朋学園","東朋学園"]
[null,null,null,null,null,null,null,null,null,null,null,null,null,null,571,"英真学園","英真学園"]
[null,null,null,null,null,null,null,null,null,null,null,null,null,null,572,"山田","山　　田"]
[null,null,null,null,null,null,null,null,null,null,null,null,null,null,574,"向陽台","向 陽 台"]
[null,null,null,null,null,null,null,null,null,null,null,null,null,null,575,"交野","交　　野"]
[null,null,null,null,null,null,null,null,null,null,null,null,null,null,576,"中央学園","中央学園"]
[null,null,null,null,null,null,null,null,null,null,null,null,null,null,578,"布施","布　　施"]
[null,null,null,null,null,null,null,null,null,null,null,null,null,null,579,"昇陽","昇　　陽"]
[null,null,null,null,null,null,null,null,null,null,null,null,null,null,580,"金光藤蔭","金光藤蔭"]
[null,null,null,null,null,null,null,null,null,null,null,null,null,null,581,"八洲学園","八洲学園"]
[null,null,null,null,null,null,null,null,null,null,null,null,null,null,582,"長尾谷(なんば校)","長 尾 谷"]
[null,null,null,null,null,null,null,null,null,null,null,null,null,null,583,"好文学園女子","好文学園"]
[null,null,null,null,null,null,null,null,null,null,null,null,null,null,584,"羽衣学園","羽衣学園"]
[null,null,null,null,null,null,null,null,null,null,null,null,null,null,585,"大阪国際","大阪国際"]
[null,null,null,null,null,null,null,null,null,null,null,null,null,null,586,"天王寺学館","天王寺学"]
[null,null,null,null,null,null,null,null,null,null,null,null,null,null,587,"住吉商業","住吉商業"]
[null,null,null,null,null,null,null,null,null,null,null,null,null,null,588,"信愛学院","信　　愛"]
[null,null,null,null,null,null,null,null,null,null,null,null,null,null,589,"クラーク高等学院 天王寺校","クラーク"]
[null,null,null,null,null,null,null,null,null,null,null,null,null,null,590,"ヒュ-マンアカデミー大阪校","ヒュ-マン"]
[null,null,null,null,null,null,null,null,null,null,null,null,null,null,591,"四条畷学園","四條畷学"]
[null,null,null,null,null,null,null,null,null,null,null,null,null,null,592,"YMCA学院","ＹＭＣＡ"]
[null,null,null,null,null,null,null,null,null,null,null,null,null,null,593,"香ヶ丘リベルテ","リベルテ"]
[null,null,null,null,null,null,null,null,null,null,null,null,null,null,594,"鹿島学園(大阪中央ｴﾐｰﾙ高等学院)","鹿島学園"]
[null,null,null,null,null,null,null,null,null,null,null,null,null,null,597,"大阪朝鮮高級","朝鮮高級"]
[null,null,null,null,null,null,null,null,null,null,null,null,null,null,598,"大阪公立大学工業高等専門","公大工専"]
[null,null,null,null,null,null,null,null,null,null,null,null,null,null,580,"金光藤蔭","金光藤蔭"]
[null,null,null,null,null,null,null,null,null,null,null,null,null,null,581,"八洲学園","八洲学園"]
[null,null,null,null,null,null,null,null,null,null,null,null,null,null,582,"長尾谷","長 尾 谷"]
[null,null,null,null,null,null,null,null,null,null,null,null,null,null,583,"好文学園女子","好文学園"]
[null,null,null,null,null,null,null,null,null,null,null,null,null,null,584,"羽衣学園","羽衣学園"]
[null,null,null,null,null,null,null,null,null,null,null,null,null,null,585,"国際","大阪国際"]
[null,null,null,null,null,null,null,null,null,null,null,null,null,null,586,"天王寺学館","天王寺学"]
[null,null,null,null,null,null,null,null,null,null,null,null,null,null,587,"住吉商業","住吉商業"]
[null,null,null,null,null,null,null,null,null,null,null,null,null,null,588,"大阪信愛女学院","大阪信愛"]
[null,null,null,null,null,null,null,null,null,null,null,null,null,null,589,"クラーク国際","クラーク"]
[null,null,null,null,null,null,null,null,null,null,null,null,null,null,590,"ヒュ-マンアカデミー","ヒュ-マン"]
[null,null,null,null,null,null,null,null,null,null,null,null,null,null,591,"四條畷学園","四條畷学"]
[null,null,null,null,null,null,null,null,null,null,null,null,null,null,592,"YMCA学院","ＹＭＣＡ"]
[null,null,null,null,null,null,null,null,null,null,null,null,null,null,593,"香ケ丘リベルテ","リベルテ"]
[null,null,null,null,null,null,null,null,null,null,null,null,null,null,594,"鹿島学園","鹿島学園"]
[null,null,null,null,null,null,null,null,null,null,null,null,null,null,597,"大阪朝鮮高級","朝鮮高級"]
[null,null,null,null,null,null,null,null,null,null,null,null,null,null,598,"大阪公立大学工業高等専門学校","公大工専"]

{"sheet":"申込手順","index":1,"n_rows":15,"n_cols":11,"rows_kept":15,"cut":false,"hidden":false,"merged":[[12,3,12,13]]}
[]
["①","入力シートに必要事項を記入し",null,null,null,null,null,null,null,"をクリックしてください。　郵送用の申込用紙が印刷されます。"]
[null,"※用紙は「B5」でお願いします。　(団体はB5　1枚　　個人は2名でB5　1枚　に印刷されます）"]
[]
["②","印刷された、申込用紙に「公印」を押して、期日までに所定の申込先に郵送してください。"]
[null,null,"〒590-0459　泉南郡熊取町朝代代1-1　TEL 072-453-7001"]
[null,null,"大阪体育大学浪商高等学校　　　寺居　史朗　宛"]
[]
[null,null,"申込締切日：",{"$f":"設定!S2","v":2026},"年",{"$f":"設定!T2","v":4},"月",{"$f":"設定!U2","v":9},"日",{"$f":"\"（\"&TEXT(DATE(D9,F9,H9),\"aaa\")&\"）\"","v":"（木）"},"正午　※郵送・メール共"]
[]
["③","入力済みのファイルを　ファイル＞名前を付けて保存＞で"]
[null,"ファイル名を　「　学校名＋（中）　」に変更して保存してください。"]
[null,null,null,"大阪体育大学浪商中学校　＝　体大浪商（中）.xlsm"]
["④","③で保存したファイルをメールに添付して　entry@sigaku.osakajudo.net　　に送信してください"]
["⑤","申し込みファイル　Ver.",null,{"$f":"設定!W2","v":20260308}]

{"sheet":"入力シート","index":2,"n_rows":41,"n_cols":14,"rows_kept":41,"cut":false,"hidden":false,"merged":[[19,7,20,7],[19,8,20,8],[19,9,20,9],[19,10,20,10],[19,2,20,2],[7,2,8,2],[1,3,1,5],[1,11,3,13],[5,12,5,13],[7,7,8,7],[7,8,8,8],[7,10,8,10],[7,9,8,9],[4,12,4,13],[2,3,2,4]]}
[null,null,null,"↓正式な学校名でお願いします。"]
[null,null,"学校名：",null,null,null,null,null,null,null,null,"【入　力　項　目】"]
[null,null,"校名の略称：",{"$f":"IF(D2=\"\",\"\",IFERROR(VLOOKUP(学校名,_中学略称[],4,FALSE),\"学校名があっていれば略称を直接入力してください\"))","v":""},null,"←略称が不適当であれば\n　上書き入力お願いします"]
[]
[null,null,"監督名：",null,"校長名：",null,null,null,null,null,null,"必須入力","リストから\n選択"]
[null,"※ふりがなは自動で入力されますが、違う場合は直接入力してください。",null,null,null,null,null,null,null,null,null,"直接入力","入力済み"]
[null,"男子団体",null,null,{"$f":"\"第\"&設定!Z2&\"回大阪私立中学校総合体育大会　柔道の部　申込書\"","v":"第29回大阪私立中学校総合体育大会　柔道の部　申込書"}]
[null,null,null,"選手名（ふりがな）",null,null,null,"学年","段位","体重(kg)","身長(cm)","生年月日"]
[null,null,null,"姓","名","せい","めい",null,null,null,null,"年(西暦)","月","日"]
[null,null,"先鋒",null,null,{"$f":"PHONETIC(D10)","v":""},""]
[null,null,"中堅",null,null,"",""]
[null,null,"大将",null,null,"",""]
[null,null,"補欠1",null,null,"",""]
[null,null,"補欠2",null,null,"",""]
[]
[]
[]
[]
[null,"個　人",null,null,{"$f":"$E$7","v":"第29回大阪私立中学校総合体育大会　柔道の部　申込書"}]
[null,null,"階　級","選手名（ふりがな）",null,null,null,"学年","段位","体重(kg)","身長(cm)","生年月日"]
[null,null,null,"姓","名","せい","めい",null,null,null,null,"年(西暦)","月","日"]
[null,{"$f":"IF(COUNTBLANK(C22:N22)=12,\"\",ROW())","v":""},null,null,null,{"$f":"PHONETIC(D22)","v":""},{"$f":"PHONETIC(E22)","v":""}]
[null,{"$f":"IF(COUNTBLANK(C23:N23)=12,\"\",ROW())","v":""},null,null,null,"",""]
[null,"",null,null,null,"",""]
[null,"",null,null,null,"",""]
[null,"",null,null,null,"",""]
[null,"",null,null,null,"",""]
[null,"",null,null,null,"",""]
[null,"",null,null,null,"",""]
[null,"",null,null,null,"",""]
[null,"",null,null,null,"",""]
[null,{"$f":"IF(COUNTBLANK(C32:N32)=12,\"\",ROW())","v":""},null,null,null,{"$f":"PHONETIC(D32)","v":""},{"$f":"PHONETIC(E32)","v":""}]
[null,"",null,null,null,"",""]
[null,"",null,null,null,"",""]
[null,"",null,null,null,"",""]
[null,"",null,null,null,"",""]
[null,"",null,null,null,"",""]
[null,"",null,null,null,"",""]
[null,"",null,null,null,"",""]
[null,"",null,null,null,"",""]
[null,"",null,null,null,"",""]

{"sheet":"団体メンバー印刷","index":3,"n_rows":23,"n_cols":12,"rows_kept":23,"cut":false,"hidden":false,"merged":[[1,6,1,9],[2,6,17,9],[19,10,21,10]]}
[]
[1," ",{"$f":"IF(入力シート!$D$2=\"\",\"\",入力シート!$D$3)","v":""},1,null,null,{"$f":"INDEX(B2:B10,MATCH(K20,A2:A10))","v":" "}]
[2,"先",{"$f":"IF(入力シート!D10=\"\",\"\",入力シート!D10)","v":""},{"$f":"IF(C3=\"\",1,COUNTIF($C$3:$C$10,C3))","v":1},{"$f":"IF(D3>=2,LEFT(入力シート!E10,1),\"\")","v":""},null,{"$f":"INDEX(C2:C10,MATCH(K20,A2:A10))","v":""}]
[3,"中",{"$f":"IF(入力シート!D11=\"\",\"\",入力シート!D11)","v":""},{"$f":"IF(C4=\"\",1,COUNTIF($C$3:$C$10,C4))","v":1},{"$f":"IF(D4>=2,LEFT(入力シート!E11,1),\"\")","v":""}]
[4,"大",{"$f":"IF(入力シート!D12=\"\",\"\",入力シート!D12)","v":""},{"$f":"IF(C5=\"\",1,COUNTIF($C$3:$C$10,C5))","v":1},{"$f":"IF(D5>=2,LEFT(入力シート!E12,1),\"\")","v":""}]
[5," ",{"$f":"IF(入力シート!D13=\"\",\"\",入力シート!D13)","v":""},{"$f":"IF(C6=\"\",1,COUNTIF($C$3:$C$10,C6))","v":1},{"$f":"IF(D6>=2,LEFT(入力シート!E13,1),\"\")","v":""}]
[6,null,{"$f":"IF(入力シート!D14=\"\",\"\",入力シート!D14)","v":""},1]
[]
[]
[]
[]
[]
[]
[]
[]
[]
[]
[]
[]
[null,null,null,null,null,null,null,null,null,null,1,"←手動の場合は↑の対応する数字を入れてください"]
[]
[]
[null,null,null,null,null,null,null,null,"同名選手の名前の1文字が出ない場合は印刷後、直接用紙にお書きください。"]

{"sheet":"申込書＿団体","index":4,"n_rows":16,"n_cols":10,"rows_kept":16,"cut":false,"hidden":false,"merged":[[1,3,1,7],[10,9,11,9],[11,2,11,3],[12,1,13,1],[12,2,12,3],[12,5,13,5],[12,6,13,6],[12,7,13,7],[12,8,13,8],[12,9,13,9],[13,2,13,3],[10,1,11,1],[10,2,10,3],[10,5,11,5],[10,6,11,6],[10,7,11,7],[10,8,11,8],[2,8,2,9],[2,5,2,7],[8,1,9,1],[8,2,8,3],[8,5,9,5],[8,6,9,6],[8,7,9,7],[8,8,9,8],[8,9,9,9],[9,2,9,3],[6,9,7,9],[6,8,7,8],[6,7,7,7],[6,6,7,6],[6,5,7,5],[3,5,3,7],[3,8,3,9],[5,2,5,4],[4,2,4,4],[4,9,5,9],[4,8,5,8],[4,7,5,7],[4,6,5,6],[4,5,5,5],[6,1,7,1],[6,2,6,3],[7,2,7,3],[3,2,3,4],[2,2,2,4],[14,8,15,8],[14,9,15,9],[15,2,15,3],[14,1,15,1],[14,2,14,3],[14,5,15,5],[14,6,15,6],[14,7,15,7]]}
[]
[null,"※抽選番号",null,{"$f":"入力シート!E7","v":"第29回大阪私立中学校総合体育大会　柔道の部　申込書"},null,null,null,null,null,{"$f":"NOW()","v":"2026-03-24T17:34:07.450"}]
[null,null,"学　　校　　名",null,null,"監　督　名",null,null,"校　長　名"]
[null,null,{"$f":"IF(入力シート!$D$2=\"\",\"\",入力シート!$D$2)","v":""},null,null,{"$f":"IF(入力シート!$D$5=\"\",\"監督名が入力されていません\",入力シート!$D$5)","v":"監督名が入力されていません"},null,null,{"$f":"IF(入力シート!$F$5=\"\",\"校長名が入力されていません\",入力シート!$F$5)","v":"校長名が入力されていません"}]
[null,null,"ふ　り　が　な",null,null,"学年","段位","体重(kg)","身長(cm)","生年月日(西暦)"]
[null,null,"選　　手　　名"]
[null,"先鋒",{"$f":"IF(入力シート!F10=\"\",\"\",入力シート!F10)","v":""},null,{"$f":"IF(入力シート!G10=\"\",\"\",入力シート!G10)","v":""},{"$f":"IF(入力シート!H10=\"\",\"\",入力シート!H10)","v":""},{"$f":"IF(入力シート!I10=\"\",\"\",入力シート!I10)","v":""},{"$f":"IF(入力シート!J10=\"\",\"\",入力シート!J10)","v":""},{"$f":"IF(入力シート!K10=\"\",\"\",入力シート!K10)","v":""},{"$f":"IF(OR(入力シート!L10=\"\",入力シート!M10=\"\",入力シート!N10=\"\"),\"\",入力シート!L10&\"・\"&入力シート!M10&\"・\"&入力シート!N10)","v":""}]
[null,null,{"$f":"IF(入力シート!D10=\"\",\"\",入力シート!D10)","v":""},null,{"$f":"IF(入力シート!E10=\"\",\"\",入力シート!E10)","v":""}]
[null,"中堅",{"$f":"IF(入力シート!F11=\"\",\"\",入力シート!F11)","v":""},null,{"$f":"IF(入力シート!G11=\"\",\"\",入力シート!G11)","v":""},{"$f":"IF(入力シート!H11=\"\",\"\",入力シート!H11)","v":""},{"$f":"IF(入力シート!I11=\"\",\"\",入力シート!I11)","v":""},{"$f":"IF(入力シート!J11=\"\",\"\",入力シート!J11)","v":""},{"$f":"IF(入力シート!K11=\"\",\"\",入力シート!K11)","v":""},{"$f":"IF(OR(入力シート!L11=\"\",入力シート!M11=\"\",入力シート!N11=\"\"),\"\",入力シート!L11&\"・\"&入力シート!M11&\"・\"&入力シート!N11)","v":""}]
[null,null,{"$f":"IF(入力シート!D11=\"\",\"\",入力シート!D11)","v":""},null,{"$f":"IF(入力シート!E11=\"\",\"\",入力シート!E11)","v":""}]
[null,"大将",{"$f":"IF(入力シート!F12=\"\",\"\",入力シート!F12)","v":""},null,{"$f":"IF(入力シート!G12=\"\",\"\",入力シート!G12)","v":""},{"$f":"IF(入力シート!H12=\"\",\"\",入力シート!H12)","v":""},{"$f":"IF(入力シート!I12=\"\",\"\",入力シート!I12)","v":""},{"$f":"IF(入力シート!J12=\"\",\"\",入力シート!J12)","v":""},{"$f":"IF(入力シート!K12=\"\",\"\",入力シート!K12)","v":""},{"$f":"IF(OR(入力シート!L12=\"\",入力シート!M12=\"\",入力シート!N12=\"\"),\"\",入力シート!L12&\"・\"&入力シート!M12&\"・\"&入力シート!N12)","v":""}]
[null,null,{"$f":"IF(入力シート!D12=\"\",\"\",入力シート!D12)","v":""},null,{"$f":"IF(入力シート!E12=\"\",\"\",入力シート!E12)","v":""}]
[null,"補欠1",{"$f":"IF(入力シート!F13=\"\",\"\",入力シート!F13)","v":""},null,{"$f":"IF(入力シート!G13=\"\",\"\",入力シート!G13)","v":""},{"$f":"IF(入力シート!H13=\"\",\"\",入力シート!H13)","v":""},{"$f":"IF(入力シート!I13=\"\",\"\",入力シート!I13)","v":""},{"$f":"IF(入力シート!J13=\"\",\"\",入力シート!J13)","v":""},{"$f":"IF(入力シート!K13=\"\",\"\",入力シート!K13)","v":""},{"$f":"IF(OR(入力シート!L13=\"\",入力シート!M13=\"\",入力シート!N13=\"\"),\"\",入力シート!L13&\"・\"&入力シート!M13&\"・\"&入力シート!N13)","v":""}]
[null,null,{"$f":"IF(入力シート!D13=\"\",\"\",入力シート!D13)","v":""},null,{"$f":"IF(入力シート!E13=\"\",\"\",入力シート!E13)","v":""}]
[null,"補欠2",{"$f":"IF(入力シート!F14=\"\",\"\",入力シート!F14)","v":""},null,{"$f":"IF(入力シート!G14=\"\",\"\",入力シート!G14)","v":""},{"$f":"IF(入力シート!H14=\"\",\"\",入力シート!H14)","v":""},{"$f":"IF(入力シート!I14=\"\",\"\",入力シート!I14)","v":""},{"$f":"IF(入力シート!J14=\"\",\"\",入力シート!J14)","v":""},{"$f":"IF(入力シート!K14=\"\",\"\",入力シート!K14)","v":""},{"$f":"IF(OR(入力シート!L14=\"\",入力シート!M14=\"\",入力シート!N14=\"\"),\"\",入力シート!L14&\"・\"&入力シート!M14&\"・\"&入力シート!N14)","v":""}]
[null,null,{"$f":"IF(入力シート!D14=\"\",\"\",入力シート!D14)","v":""},null,{"$f":"IF(入力シート!E14=\"\",\"\",入力シート!E14)","v":""}]

{"sheet":"申込書＿個人","index":5,"n_rows":27,"n_cols":13,"rows_kept":27,"cut":false,"hidden":false,"merged":[[4,6,4,10],[5,7,5,12],[6,5,6,7],[6,8,6,10],[6,11,6,12],[7,5,7,7],[7,8,7,10],[7,11,7,12],[8,5,8,6],[23,5,23,7],[23,8,23,10],[23,11,23,12],[9,5,9,6],[16,8,17,8],[21,6,21,10],[22,7,22,12],[24,5,24,7],[24,8,24,10],[24,11,24,12],[25,5,25,6],[26,5,26,6]]}
[]
[null,{"$f":"MAX(B3:B16)","v":0}]
[1,{"$f":"入力シート!B22","v":""},25]
[2,{"$f":"入力シート!B23","v":""},26]
[3,{"$f":"入力シート!B24","v":""},null,null,null,null,"個　人　試　合　申　込　書",null,null,null,null,null,{"$f":"NOW()","v":"2026-03-24T17:34:07.450"}]
[4,{"$f":"入力シート!B25","v":""},null,null,"※抽選番号",null,{"$f":"IF(INDIRECT(\"入力シート!C\"&$C$3)=0,\"\",INDIRECT(\"入力シート!C\"&$C$3))","v":""},{"$f":"入力シート!$E$7","v":"第29回大阪私立中学校総合体育大会　柔道の部　申込書"}]
[5,{"$f":"入力シート!B26","v":""},null,null,"学校番号","学　　校　　名",null,null,"監　督　名",null,null,"校　長　名"]
[6,{"$f":"入力シート!B27","v":""},null,null,{"$f":"IF(入力シート!$C$2=\"\",\"\",入力シート!$C$2)","v":"学校名："},{"$f":"IF(入力シート!$D$2=\"\",\"\",入力シート!$D$2)","v":""},null,null,{"$f":"IF(入力シート!$D$5=\"\",\"監督名が入力されていません\",入力シート!$D$5)","v":"監督名が入力されていません"},null,null,{"$f":"IF(入力シート!$F$5=\"\",\"校長名が入力されていません\",入力シート!$F$5)","v":"校長名が入力されていません"}]
[7,{"$f":"入力シート!B28","v":""},null,null,"ふりがな",{"$f":"IF(INDIRECT(\"入力シート!F\"&$C$3)=\"\",\"\",INDIRECT(\"入力シート!F\"&$C$3))","v":""},null,{"$f":"IF(INDIRECT(\"入力シート!G\"&$C$3)=\"\",\"\",INDIRECT(\"入力シート!G\"&$C$3))","v":""},"学年","段位","体重(kg)","身長(cm)","生年月日(西暦)"]
[8,{"$f":"入力シート!B29","v":""},null,null,"選手名",{"$f":"IF(INDIRECT(\"入力シート!D\"&$C$3)=\"\",\"\",INDIRECT(\"入力シート!D\"&$C$3))","v":""},null,{"$f":"IF(INDIRECT(\"入力シート!E\"&$C$3)=\"\",\"\",INDIRECT(\"入力シート!E\"&$C$3))","v":""},{"$f":"IF(INDIRECT(\"入力シート!H\"&$C$3)=\"\",\"\",INDIRECT(\"入力シート!H\"&$C$3))","v":""},{"$f":"IF(INDIRECT(\"入力シート!I\"&$C$3)=\"\",\"\",INDIRECT(\"入力シート!I\"&$C$3))","v":""},{"$f":"IF(INDIRECT(\"入力シート!J\"&$C$3)=\"\",\"\",INDIRECT(\"入力シート!J\"&$C$3))","v":""},{"$f":"IF(INDIRECT(\"入力シート!K\"&$C$3)=\"\",\"\",INDIRECT(\"入力シート!K\"&$C$3))","v":""},{"$f":"IF(OR(INDIRECT(\"入力シート!L\"&$C$3)=\"\",INDIRECT(\"入力シート!M\"&$C$3)=\"\",INDIRECT(\"入力シート!N\"&$C$3)=\"\"),\"\",INDIRECT(\"入力シート!L\"&$C$3)&\"・\"&INDIRECT(\"入力シート!M\"&$C$3)&\"・\"&INDIRECT(\"入力シート!N\"&$C$3))","v":""}]
[9,{"$f":"入力シート!B30","v":""}]
[10,{"$f":"入力シート!B31","v":""}]
[11,{"$f":"入力シート!B32","v":""}]
[12,{"$f":"入力シート!B33","v":""}]
[13,{"$f":"入力シート!B34","v":""}]
[14,{"$f":"入力シート!B35","v":""}]
[15,{"$f":"入力シート!B36","v":""},null,null,null,null,null,null,"(キリトリ)"]
[16,{"$f":"入力シート!B37","v":""}]
[17,{"$f":"入力シート!B38","v":""}]
[18,{"$f":"入力シート!B39","v":""}]
[19,{"$f":"入力シート!B40","v":""}]
[20,{"$f":"入力シート!B41","v":""},null,null,null,null,"個　人　試　合　申　込　書",null,null,null,null,null,{"$f":"NOW()","v":"2026-03-24T17:34:07.450"}]
[null,null,null,null,"※抽選番号",null,{"$f":"IF(INDIRECT(\"入力シート!C\"&$C$4)=0,\"\",INDIRECT(\"入力シート!C\"&$C$4))","v":""},{"$f":"入力シート!$E$7","v":"第29回大阪私立中学校総合体育大会　柔道の部　申込書"}]
[null,null,null,null,"学校番号","学　　校　　名",null,null,"監　督　名",null,null,"校　長　名"]
[null,null,null,null,{"$f":"IF(入力シート!$C$2=\"\",\"\",入力シート!$C$2)","v":"学校名："},{"$f":"IF(入力シート!$D$2=\"\",\"\",入力シート!$D$2)","v":""},null,null,{"$f":"IF(入力シート!$D$5=\"\",\"監督名が入力されていません\",入力シート!$D$5)","v":"監督名が入力されていません"},null,null,{"$f":"IF(入力シート!$F$5=\"\",\"校長名が入力されていません\",入力シート!$F$5)","v":"校長名が入力されていません"}]
[null,null,null,null,"ふりがな",{"$f":"IF(INDIRECT(\"入力シート!F\"&$C$4)=\"\",\"\",INDIRECT(\"入力シート!F\"&$C$4))","v":""},null,{"$f":"IF(INDIRECT(\"入力シート!G\"&$C$4)=\"\",\"\",INDIRECT(\"入力シート!G\"&$C$4))","v":""},"学年","段位","体重(kg)","身長(cm)","生年月日(西暦)"]
[null,null,null,null,"選手名",{"$f":"IF(INDIRECT(\"入力シート!D\"&$C$4)=\"\",\"\",INDIRECT(\"入力シート!D\"&$C$4))","v":""},null,{"$f":"IF(INDIRECT(\"入力シート!E\"&$C$4)=\"\",\"\",INDIRECT(\"入力シート!E\"&$C$4))","v":""},{"$f":"IF(INDIRECT(\"入力シート!H\"&$C$4)=\"\",\"\",INDIRECT(\"入力シート!H\"&$C$4))","v":""},{"$f":"IF(INDIRECT(\"入力シート!I\"&$C$4)=\"\",\"\",INDIRECT(\"入力シート!I\"&$C$4))","v":""},{"$f":"IF(INDIRECT(\"入力シート!J\"&$C$4)=\"\",\"\",INDIRECT(\"入力シート!J\"&$C$4))","v":""},{"$f":"IF(INDIRECT(\"入力シート!K\"&$C$4)=\"\",\"\",INDIRECT(\"入力シート!K\"&$C$4))","v":""},{"$f":"IF(OR(INDIRECT(\"入力シート!L\"&$C$4)=\"\",INDIRECT(\"入力シート!M\"&$C$4)=\"\",INDIRECT(\"入力シート!N\"&$C$4)=\"\"),\"\",INDIRECT(\"入力シート!L\"&$C$4)&\"・\"&INDIRECT(\"入力シート!M\"&$C$4)&\"・\"&INDIRECT(\"入力シート!N\"&$C$4))","v":""}]

{"sheet":"プログラム男子","index":6,"n_rows":9,"n_cols":7,"rows_kept":9,"cut":false,"hidden":false,"merged":[[4,1,4,2],[5,1,5,2],[6,1,6,2],[7,1,7,2],[8,1,8,2]]}
[]
[null,null,null,{"$f":"入力シート!$D$2","v":0}]
[null,null,null,null,"監督：",{"$f":"入力シート!$D$5","v":0}]
[null,null,null,"名前","段","体重","身長"]
[null,"先　鋒",null,{"$f":"IF(入力シート!D10=\"\",\"\",入力シート!D10&\"　\"&入力シート!E10)","v":""},{"$f":"IF(D5=\"\",\"\",IF(入力シート!I10=0,\"無\",入力シート!I10))","v":""},{"$f":"IF(D5=\"\",\"\",入力シート!J10)","v":""},{"$f":"IF(D5=\"\",\"\",入力シート!K10)","v":""}]
[null,"中　堅",null,{"$f":"IF(入力シート!D11=\"\",\"\",入力シート!D11&\"　\"&入力シート!E11)","v":""},{"$f":"IF(D6=\"\",\"\",IF(入力シート!I11=0,\"無\",入力シート!I11))","v":""},{"$f":"IF(D6=\"\",\"\",入力シート!J11)","v":""},{"$f":"IF(D6=\"\",\"\",入力シート!K11)","v":""}]
[null,"大　将",null,{"$f":"IF(入力シート!D12=\"\",\"\",入力シート!D12&\"　\"&入力シート!E12)","v":""},{"$f":"IF(D7=\"\",\"\",IF(入力シート!I12=0,\"無\",入力シート!I12))","v":""},{"$f":"IF(D7=\"\",\"\",入力シート!J12)","v":""},{"$f":"IF(D7=\"\",\"\",入力シート!K12)","v":""}]
[null,"補欠１",null,{"$f":"IF(入力シート!D13=\"\",\"\",入力シート!D13&\"　\"&入力シート!E13)","v":""},{"$f":"IF(D8=\"\",\"\",IF(入力シート!I13=0,\"無\",入力シート!I13))","v":""},{"$f":"IF(D8=\"\",\"\",入力シート!J13)","v":""},{"$f":"IF(D8=\"\",\"\",入力シート!K13)","v":""}]
[null,"補欠２",null,{"$f":"IF(入力シート!D14=\"\",\"\",入力シート!D14&\"　\"&入力シート!E14)","v":""},{"$f":"IF(D9=\"\",\"\",IF(入力シート!I14=0,\"無\",入力シート!I14))","v":""},{"$f":"IF(D9=\"\",\"\",入力シート!J14)","v":""},{"$f":"IF(D9=\"\",\"\",入力シート!K14)","v":""}]

{"sheet":"申込選手一覧（個人）","index":7,"n_rows":37,"n_cols":10,"rows_kept":37,"cut":false,"hidden":false,"merged":[]}
[null,"階級","姓","名","ふりがな","学校名","学年","段位","体重","身長"]
[1,{"$f":"IF(入力シート!C22=\"\",\"\",入力シート!C22)","v":""},{"$f":"IF(入力シート!D22=\"\",\"\",入力シート!D22)","v":""},{"$f":"IF(入力シート!E22=\"\",\"\",入力シート!E22)","v":""},{"$f":"IF(C2=\"\",\"\",入力シート!F22&\"　\"&入力シート!G22)","v":""},{"$f":"IF(B2=\"\",\"\",入力シート!$D$3)","v":""},{"$f":"IF(C2=\"\",\"\",入力シート!H22)","v":""},{"$f":"IF(C2=\"\",\"\",IF(入力シート!I22=0,\"無\",入力シート!I22))","v":""},{"$f":"IF(C2=\"\",\"\",入力シート!J22)","v":""},{"$f":"IF(C2=\"\",\"\",入力シート!K22)","v":""}]
[2,{"$f":"IF(入力シート!C23=\"\",\"\",入力シート!C23)","v":""},{"$f":"IF(入力シート!D23=\"\",\"\",入力シート!D23)","v":""},{"$f":"IF(入力シート!E23=\"\",\"\",入力シート!E23)","v":""},{"$f":"IF(C3=\"\",\"\",入力シート!F23&\"　\"&入力シート!G23)","v":""},{"$f":"IF(B3=\"\",\"\",入力シート!$D$3)","v":""},{"$f":"IF(C3=\"\",\"\",入力シート!H23)","v":""},{"$f":"IF(C3=\"\",\"\",IF(入力シート!I23=0,\"無\",入力シート!I23))","v":""},{"$f":"IF(C3=\"\",\"\",入力シート!J23)","v":""},{"$f":"IF(C3=\"\",\"\",入力シート!K23)","v":""}]
[3,{"$f":"IF(入力シート!C24=\"\",\"\",入力シート!C24)","v":""},{"$f":"IF(入力シート!D24=\"\",\"\",入力シート!D24)","v":""},{"$f":"IF(入力シート!E24=\"\",\"\",入力シート!E24)","v":""},{"$f":"IF(C4=\"\",\"\",入力シート!F24&\"　\"&入力シート!G24)","v":""},{"$f":"IF(B4=\"\",\"\",入力シート!$D$3)","v":""},{"$f":"IF(C4=\"\",\"\",入力シート!H24)","v":""},{"$f":"IF(C4=\"\",\"\",IF(入力シート!I24=0,\"無\",入力シート!I24))","v":""},{"$f":"IF(C4=\"\",\"\",入力シート!J24)","v":""},{"$f":"IF(C4=\"\",\"\",入力シート!K24)","v":""}]
[4,{"$f":"IF(入力シート!C25=\"\",\"\",入力シート!C25)","v":""},{"$f":"IF(入力シート!D25=\"\",\"\",入力シート!D25)","v":""},{"$f":"IF(入力シート!E25=\"\",\"\",入力シート!E25)","v":""},{"$f":"IF(C5=\"\",\"\",入力シート!F25&\"　\"&入力シート!G25)","v":""},{"$f":"IF(B5=\"\",\"\",入力シート!$D$3)","v":""},{"$f":"IF(C5=\"\",\"\",入力シート!H25)","v":""},{"$f":"IF(C5=\"\",\"\",IF(入力シート!I25=0,\"無\",入力シート!I25))","v":""},{"$f":"IF(C5=\"\",\"\",入力シート!J25)","v":""},{"$f":"IF(C5=\"\",\"\",入力シート!K25)","v":""}]
[5,{"$f":"IF(入力シート!C26=\"\",\"\",入力シート!C26)","v":""},{"$f":"IF(入力シート!D26=\"\",\"\",入力シート!D26)","v":""},{"$f":"IF(入力シート!E26=\"\",\"\",入力シート!E26)","v":""},{"$f":"IF(C6=\"\",\"\",入力シート!F26&\"　\"&入力シート!G26)","v":""},{"$f":"IF(B6=\"\",\"\",入力シート!$D$3)","v":""},{"$f":"IF(C6=\"\",\"\",入力シート!H26)","v":""},{"$f":"IF(C6=\"\",\"\",IF(入力シート!I26=0,\"無\",入力シート!I26))","v":""},{"$f":"IF(C6=\"\",\"\",入力シート!J26)","v":""},{"$f":"IF(C6=\"\",\"\",入力シート!K26)","v":""}]
[6,{"$f":"IF(入力シート!C27=\"\",\"\",入力シート!C27)","v":""},{"$f":"IF(入力シート!D27=\"\",\"\",入力シート!D27)","v":""},{"$f":"IF(入力シート!E27=\"\",\"\",入力シート!E27)","v":""},{"$f":"IF(C7=\"\",\"\",入力シート!F27&\"　\"&入力シート!G27)","v":""},{"$f":"IF(B7=\"\",\"\",入力シート!$D$3)","v":""},{"$f":"IF(C7=\"\",\"\",入力シート!H27)","v":""},{"$f":"IF(C7=\"\",\"\",IF(入力シート!I27=0,\"無\",入力シート!I27))","v":""},{"$f":"IF(C7=\"\",\"\",入力シート!J27)","v":""},{"$f":"IF(C7=\"\",\"\",入力シート!K27)","v":""}]
[7,{"$f":"IF(入力シート!C28=\"\",\"\",入力シート!C28)","v":""},{"$f":"IF(入力シート!D28=\"\",\"\",入力シート!D28)","v":""},{"$f":"IF(入力シート!E28=\"\",\"\",入力シート!E28)","v":""},{"$f":"IF(C8=\"\",\"\",入力シート!F28&\"　\"&入力シート!G28)","v":""},{"$f":"IF(B8=\"\",\"\",入力シート!$D$3)","v":""},{"$f":"IF(C8=\"\",\"\",入力シート!H28)","v":""},{"$f":"IF(C8=\"\",\"\",IF(入力シート!I28=0,\"無\",入力シート!I28))","v":""},{"$f":"IF(C8=\"\",\"\",入力シート!J28)","v":""},{"$f":"IF(C8=\"\",\"\",入力シート!K28)","v":""}]
[8,{"$f":"IF(入力シート!C29=\"\",\"\",入力シート!C29)","v":""},{"$f":"IF(入力シート!D29=\"\",\"\",入力シート!D29)","v":""},{"$f":"IF(入力シート!E29=\"\",\"\",入力シート!E29)","v":""},{"$f":"IF(C9=\"\",\"\",入力シート!F29&\"　\"&入力シート!G29)","v":""},{"$f":"IF(B9=\"\",\"\",入力シート!$D$3)","v":""},{"$f":"IF(C9=\"\",\"\",入力シート!H29)","v":""},{"$f":"IF(C9=\"\",\"\",IF(入力シート!I29=0,\"無\",入力シート!I29))","v":""},{"$f":"IF(C9=\"\",\"\",入力シート!J29)","v":""},{"$f":"IF(C9=\"\",\"\",入力シート!K29)","v":""}]
[9,{"$f":"IF(入力シート!C30=\"\",\"\",入力シート!C30)","v":""},{"$f":"IF(入力シート!D30=\"\",\"\",入力シート!D30)","v":""},{"$f":"IF(入力シート!E30=\"\",\"\",入力シート!E30)","v":""},{"$f":"IF(C10=\"\",\"\",入力シート!F30&\"　\"&入力シート!G30)","v":""},{"$f":"IF(B10=\"\",\"\",入力シート!$D$3)","v":""},{"$f":"IF(C10=\"\",\"\",入力シート!H30)","v":""},{"$f":"IF(C10=\"\",\"\",IF(入力シート!I30=0,\"無\",入力シート!I30))","v":""},{"$f":"IF(C10=\"\",\"\",入力シート!J30)","v":""},{"$f":"IF(C10=\"\",\"\",入力シート!K30)","v":""}]
[10,{"$f":"IF(入力シート!C31=\"\",\"\",入力シート!C31)","v":""},{"$f":"IF(入力シート!D31=\"\",\"\",入力シート!D31)","v":""},{"$f":"IF(入力シート!E31=\"\",\"\",入力シート!E31)","v":""},{"$f":"IF(C11=\"\",\"\",入力シート!F31&\"　\"&入力シート!G31)","v":""},{"$f":"IF(B11=\"\",\"\",入力シート!$D$3)","v":""},{"$f":"IF(C11=\"\",\"\",入力シート!H31)","v":""},{"$f":"IF(C11=\"\",\"\",IF(入力シート!I31=0,\"無\",入力シート!I31))","v":""},{"$f":"IF(C11=\"\",\"\",入力シート!J31)","v":""},{"$f":"IF(C11=\"\",\"\",入力シート!K31)","v":""}]
[11,{"$f":"IF(入力シート!C32=\"\",\"\",入力シート!C32)","v":""},{"$f":"IF(入力シート!D32=\"\",\"\",入力シート!D32)","v":""},{"$f":"IF(入力シート!E32=\"\",\"\",入力シート!E32)","v":""},{"$f":"IF(C12=\"\",\"\",入力シート!F32&\"　\"&入力シート!G32)","v":""},{"$f":"IF(B12=\"\",\"\",入力シート!$D$3)","v":""},{"$f":"IF(C12=\"\",\"\",入力シート!H32)","v":""},{"$f":"IF(C12=\"\",\"\",IF(入力シート!I32=0,\"無\",入力シート!I32))","v":""},{"$f":"IF(C12=\"\",\"\",入力シート!J32)","v":""},{"$f":"IF(C12=\"\",\"\",入力シート!K32)","v":""}]
[12,{"$f":"IF(入力シート!C33=\"\",\"\",入力シート!C33)","v":""},{"$f":"IF(入力シート!D33=\"\",\"\",入力シート!D33)","v":""},{"$f":"IF(入力シート!E33=\"\",\"\",入力シート!E33)","v":""},{"$f":"IF(C13=\"\",\"\",入力シート!F33&\"　\"&入力シート!G33)","v":""},{"$f":"IF(B13=\"\",\"\",入力シート!$D$3)","v":""},{"$f":"IF(C13=\"\",\"\",入力シート!H33)","v":""},{"$f":"IF(C13=\"\",\"\",IF(入力シート!I33=0,\"無\",入力シート!I33))","v":""},{"$f":"IF(C13=\"\",\"\",入力シート!J33)","v":""},{"$f":"IF(C13=\"\",\"\",入力シート!K33)","v":""}]
[13,{"$f":"IF(入力シート!C34=\"\",\"\",入力シート!C34)","v":""},{"$f":"IF(入力シート!D34=\"\",\"\",入力シート!D34)","v":""},{"$f":"IF(入力シート!E34=\"\",\"\",入力シート!E34)","v":""},{"$f":"IF(C14=\"\",\"\",入力シート!F34&\"　\"&入力シート!G34)","v":""},{"$f":"IF(B14=\"\",\"\",入力シート!$D$3)","v":""},{"$f":"IF(C14=\"\",\"\",入力シート!H34)","v":""},{"$f":"IF(C14=\"\",\"\",IF(入力シート!I34=0,\"無\",入力シート!I34))","v":""},{"$f":"IF(C14=\"\",\"\",入力シート!J34)","v":""},{"$f":"IF(C14=\"\",\"\",入力シート!K34)","v":""}]
[14,{"$f":"IF(入力シート!C35=\"\",\"\",入力シート!C35)","v":""},{"$f":"IF(入力シート!D35=\"\",\"\",入力シート!D35)","v":""},{"$f":"IF(入力シート!E35=\"\",\"\",入力シート!E35)","v":""},{"$f":"IF(C15=\"\",\"\",入力シート!F35&\"　\"&入力シート!G35)","v":""},{"$f":"IF(B15=\"\",\"\",入力シート!$D$3)","v":""},{"$f":"IF(C15=\"\",\"\",入力シート!H35)","v":""},{"$f":"IF(C15=\"\",\"\",IF(入力シート!I35=0,\"無\",入力シート!I35))","v":""},{"$f":"IF(C15=\"\",\"\",入力シート!J35)","v":""},{"$f":"IF(C15=\"\",\"\",入力シート!K35)","v":""}]
[1,{"$f":"IF(入力シート!C40=\"\",\"\",入力シート!C40)","v":""},{"$f":"IF(入力シート!D40=\"\",\"\",入力シート!D40)","v":""},{"$f":"IF(入力シート!E40=\"\",\"\",入力シート!E40)","v":""},{"$f":"IF(C16=\"\",\"\",入力シート!F40&\"　\"&入力シート!G40)","v":""},{"$f":"IF(B16=\"\",\"\",入力シート!$D$3)","v":""},{"$f":"IF(C16=\"\",\"\",入力シート!H40)","v":""},{"$f":"IF(C16=\"\",\"\",入力シート!I40)","v":""}]
[2,{"$f":"IF(入力シート!C41=\"\",\"\",入力シート!C41)","v":""},{"$f":"IF(入力シート!D41=\"\",\"\",入力シート!D41)","v":""},{"$f":"IF(入力シート!E41=\"\",\"\",入力シート!E41)","v":""},{"$f":"IF(C17=\"\",\"\",入力シート!F41&\"　\"&入力シート!G41)","v":""},{"$f":"IF(B17=\"\",\"\",入力シート!$D$3)","v":""},{"$f":"IF(C17=\"\",\"\",入力シート!H41)","v":""},{"$f":"IF(C17=\"\",\"\",入力シート!I41)","v":""}]
[3,{"$f":"IF(入力シート!C42=\"\",\"\",入力シート!C42)","v":""},{"$f":"IF(入力シート!D42=\"\",\"\",入力シート!D42)","v":""},{"$f":"IF(入力シート!E42=\"\",\"\",入力シート!E42)","v":""},{"$f":"IF(C18=\"\",\"\",入力シート!F42&\"　\"&入力シート!G42)","v":""},{"$f":"IF(B18=\"\",\"\",入力シート!$D$3)","v":""},{"$f":"IF(C18=\"\",\"\",入力シート!H42)","v":""},{"$f":"IF(C18=\"\",\"\",入力シート!I42)","v":""}]
[4,{"$f":"IF(入力シート!C43=\"\",\"\",入力シート!C43)","v":""},{"$f":"IF(入力シート!D43=\"\",\"\",入力シート!D43)","v":""},{"$f":"IF(入力シート!E43=\"\",\"\",入力シート!E43)","v":""},{"$f":"IF(C19=\"\",\"\",入力シート!F43&\"　\"&入力シート!G43)","v":""},{"$f":"IF(B19=\"\",\"\",入力シート!$D$3)","v":""},{"$f":"IF(C19=\"\",\"\",入力シート!H43)","v":""},{"$f":"IF(C19=\"\",\"\",入力シート!I43)","v":""}]
[5,{"$f":"IF(入力シート!C44=\"\",\"\",入力シート!C44)","v":""},{"$f":"IF(入力シート!D44=\"\",\"\",入力シート!D44)","v":""},{"$f":"IF(入力シート!E44=\"\",\"\",入力シート!E44)","v":""},{"$f":"IF(C20=\"\",\"\",入力シート!F44&\"　\"&入力シート!G44)","v":""},{"$f":"IF(B20=\"\",\"\",入力シート!$D$3)","v":""},{"$f":"IF(C20=\"\",\"\",入力シート!H44)","v":""},{"$f":"IF(C20=\"\",\"\",入力シート!I44)","v":""}]
[6,{"$f":"IF(入力シート!C45=\"\",\"\",入力シート!C45)","v":""},{"$f":"IF(入力シート!D45=\"\",\"\",入力シート!D45)","v":""},{"$f":"IF(入力シート!E45=\"\",\"\",入力シート!E45)","v":""},{"$f":"IF(C21=\"\",\"\",入力シート!F45&\"　\"&入力シート!G45)","v":""},{"$f":"IF(B21=\"\",\"\",入力シート!$D$3)","v":""},{"$f":"IF(C21=\"\",\"\",入力シート!H45)","v":""},{"$f":"IF(C21=\"\",\"\",入力シート!I45)","v":""}]
[7,{"$f":"IF(入力シート!C46=\"\",\"\",入力シート!C46)","v":""},{"$f":"IF(入力シート!D46=\"\",\"\",入力シート!D46)","v":""},{"$f":"IF(入力シート!E46=\"\",\"\",入力シート!E46)","v":""},{"$f":"IF(C22=\"\",\"\",入力シート!F46&\"　\"&入力シート!G46)","v":""},{"$f":"IF(B22=\"\",\"\",入力シート!$D$3)","v":""},{"$f":"IF(C22=\"\",\"\",入力シート!H46)","v":""},{"$f":"IF(C22=\"\",\"\",入力シート!I46)","v":""}]
[8,{"$f":"IF(入力シート!C47=\"\",\"\",入力シート!C47)","v":""},{"$f":"IF(入力シート!D47=\"\",\"\",入力シート!D47)","v":""},{"$f":"IF(入力シート!E47=\"\",\"\",入力シート!E47)","v":""},{"$f":"IF(C23=\"\",\"\",入力シート!F47&\"　\"&入力シート!G47)","v":""},{"$f":"IF(B23=\"\",\"\",入力シート!$D$3)","v":""},{"$f":"IF(C23=\"\",\"\",入力シート!H47)","v":""},{"$f":"IF(C23=\"\",\"\",入力シート!I47)","v":""}]
[9,{"$f":"IF(入力シート!C48=\"\",\"\",入力シート!C48)","v":""},{"$f":"IF(入力シート!D48=\"\",\"\",入力シート!D48)","v":""},{"$f":"IF(入力シート!E48=\"\",\"\",入力シート!E48)","v":""},{"$f":"IF(C24=\"\",\"\",入力シート!F48&\"　\"&入力シート!G48)","v":""},{"$f":"IF(B24=\"\",\"\",入力シート!$D$3)","v":""},{"$f":"IF(C24=\"\",\"\",入力シート!H48)","v":""},{"$f":"IF(C24=\"\",\"\",入力シート!I48)","v":""}]
[10,{"$f":"IF(入力シート!C49=\"\",\"\",入力シート!C49)","v":""},{"$f":"IF(入力シート!D49=\"\",\"\",入力シート!D49)","v":""},{"$f":"IF(入力シート!E49=\"\",\"\",入力シート!E49)","v":""},{"$f":"IF(C25=\"\",\"\",入力シート!F49&\"　\"&入力シート!G49)","v":""},{"$f":"IF(B25=\"\",\"\",入力シート!$D$3)","v":""},{"$f":"IF(C25=\"\",\"\",入力シート!H49)","v":""},{"$f":"IF(C25=\"\",\"\",入力シート!I49)","v":""}]
[11,{"$f":"IF(入力シート!C50=\"\",\"\",入力シート!C50)","v":""},{"$f":"IF(入力シート!D50=\"\",\"\",入力シート!D50)","v":""},{"$f":"IF(入力シート!E50=\"\",\"\",入力シート!E50)","v":""},{"$f":"IF(C26=\"\",\"\",入力シート!F50&\"　\"&入力シート!G50)","v":""},{"$f":"IF(B26=\"\",\"\",入力シート!$D$3)","v":""},{"$f":"IF(C26=\"\",\"\",入力シート!H50)","v":""},{"$f":"IF(C26=\"\",\"\",入力シート!I50)","v":""}]
[12,{"$f":"IF(入力シート!C51=\"\",\"\",入力シート!C51)","v":""},{"$f":"IF(入力シート!D51=\"\",\"\",入力シート!D51)","v":""},{"$f":"IF(入力シート!E51=\"\",\"\",入力シート!E51)","v":""},{"$f":"IF(C27=\"\",\"\",入力シート!F51&\"　\"&入力シート!G51)","v":""},{"$f":"IF(B27=\"\",\"\",入力シート!$D$3)","v":""},{"$f":"IF(C27=\"\",\"\",入力シート!H51)","v":""},{"$f":"IF(C27=\"\",\"\",入力シート!I51)","v":""}]
[13,{"$f":"IF(入力シート!C52=\"\",\"\",入力シート!C52)","v":""},{"$f":"IF(入力シート!D52=\"\",\"\",入力シート!D52)","v":""},{"$f":"IF(入力シート!E52=\"\",\"\",入力シート!E52)","v":""},{"$f":"IF(C28=\"\",\"\",入力シート!F52&\"　\"&入力シート!G52)","v":""},{"$f":"IF(B28=\"\",\"\",入力シート!$D$3)","v":""},{"$f":"IF(C28=\"\",\"\",入力シート!H52)","v":""},{"$f":"IF(C28=\"\",\"\",入力シート!I52)","v":""}]
[14,{"$f":"IF(入力シート!C53=\"\",\"\",入力シート!C53)","v":""},{"$f":"IF(入力シート!D53=\"\",\"\",入力シート!D53)","v":""},{"$f":"IF(入力シート!E53=\"\",\"\",入力シート!E53)","v":""},{"$f":"IF(C29=\"\",\"\",入力シート!F53&\"　\"&入力シート!G53)","v":""},{"$f":"IF(B29=\"\",\"\",入力シート!$D$3)","v":""},{"$f":"IF(C29=\"\",\"\",入力シート!H53)","v":""},{"$f":"IF(C29=\"\",\"\",入力シート!I53)","v":""}]
[15,{"$f":"IF(入力シート!C54=\"\",\"\",入力シート!C54)","v":""},{"$f":"IF(入力シート!D54=\"\",\"\",入力シート!D54)","v":""},{"$f":"IF(入力シート!E54=\"\",\"\",入力シート!E54)","v":""},{"$f":"IF(C30=\"\",\"\",入力シート!F54&\"　\"&入力シート!G54)","v":""},{"$f":"IF(B30=\"\",\"\",入力シート!$D$3)","v":""},{"$f":"IF(C30=\"\",\"\",入力シート!H54)","v":""},{"$f":"IF(C30=\"\",\"\",入力シート!I54)","v":""}]
[16,{"$f":"IF(入力シート!C55=\"\",\"\",入力シート!C55)","v":""},{"$f":"IF(入力シート!D55=\"\",\"\",入力シート!D55)","v":""},{"$f":"IF(入力シート!E55=\"\",\"\",入力シート!E55)","v":""},{"$f":"IF(C31=\"\",\"\",入力シート!F55&\"　\"&入力シート!G55)","v":""},{"$f":"IF(B31=\"\",\"\",入力シート!$D$3)","v":""},{"$f":"IF(C31=\"\",\"\",入力シート!H55)","v":""},{"$f":"IF(C31=\"\",\"\",入力シート!I55)","v":""}]
[17,{"$f":"IF(入力シート!C56=\"\",\"\",入力シート!C56)","v":""},{"$f":"IF(入力シート!D56=\"\",\"\",入力シート!D56)","v":""},{"$f":"IF(入力シート!E56=\"\",\"\",入力シート!E56)","v":""},{"$f":"IF(C32=\"\",\"\",入力シート!F56&\"　\"&入力シート!G56)","v":""},{"$f":"IF(B32=\"\",\"\",入力シート!$D$3)","v":""},{"$f":"IF(C32=\"\",\"\",入力シート!H56)","v":""},{"$f":"IF(C32=\"\",\"\",入力シート!I56)","v":""}]
[18,{"$f":"IF(入力シート!C57=\"\",\"\",入力シート!C57)","v":""},{"$f":"IF(入力シート!D57=\"\",\"\",入力シート!D57)","v":""},{"$f":"IF(入力シート!E57=\"\",\"\",入力シート!E57)","v":""},{"$f":"IF(C33=\"\",\"\",入力シート!F57&\"　\"&入力シート!G57)","v":""},{"$f":"IF(B33=\"\",\"\",入力シート!$D$3)","v":""},{"$f":"IF(C33=\"\",\"\",入力シート!H57)","v":""},{"$f":"IF(C33=\"\",\"\",入力シート!I57)","v":""}]
[19,{"$f":"IF(入力シート!C58=\"\",\"\",入力シート!C58)","v":""},{"$f":"IF(入力シート!D58=\"\",\"\",入力シート!D58)","v":""},{"$f":"IF(入力シート!E58=\"\",\"\",入力シート!E58)","v":""},{"$f":"IF(C34=\"\",\"\",入力シート!F58&\"　\"&入力シート!G58)","v":""},{"$f":"IF(B34=\"\",\"\",入力シート!$D$3)","v":""},{"$f":"IF(C34=\"\",\"\",入力シート!H58)","v":""},{"$f":"IF(C34=\"\",\"\",入力シート!I58)","v":""}]
[20,{"$f":"IF(入力シート!C59=\"\",\"\",入力シート!C59)","v":""},{"$f":"IF(入力シート!D59=\"\",\"\",入力シート!D59)","v":""},{"$f":"IF(入力シート!E59=\"\",\"\",入力シート!E59)","v":""},{"$f":"IF(C35=\"\",\"\",入力シート!F59&\"　\"&入力シート!G59)","v":""},{"$f":"IF(B35=\"\",\"\",入力シート!$D$3)","v":""},{"$f":"IF(C35=\"\",\"\",入力シート!H59)","v":""},{"$f":"IF(C35=\"\",\"\",入力シート!I59)","v":""}]
[21,{"$f":"IF(入力シート!C60=\"\",\"\",入力シート!C60)","v":""},{"$f":"IF(入力シート!D60=\"\",\"\",入力シート!D60)","v":""},{"$f":"IF(入力シート!E60=\"\",\"\",入力シート!E60)","v":""},{"$f":"IF(C36=\"\",\"\",入力シート!F60&\"　\"&入力シート!G60)","v":""},{"$f":"IF(B36=\"\",\"\",入力シート!$D$3)","v":""},{"$f":"IF(C36=\"\",\"\",入力シート!H60)","v":""},{"$f":"IF(C36=\"\",\"\",入力シート!I60)","v":""}]
[22,{"$f":"IF(入力シート!C61=\"\",\"\",入力シート!C61)","v":""},{"$f":"IF(入力シート!D61=\"\",\"\",入力シート!D61)","v":""},{"$f":"IF(入力シート!E61=\"\",\"\",入力シート!E61)","v":""},{"$f":"IF(C37=\"\",\"\",入力シート!F61&\"　\"&入力シート!G61)","v":""},{"$f":"IF(B37=\"\",\"\",入力シート!$D$3)","v":""},{"$f":"IF(C37=\"\",\"\",入力シート!H61)","v":""},{"$f":"IF(C37=\"\",\"\",入力シート!I61)","v":""}]

{"sheet":"申込選手一覧（個人_フィルター関数)","index":8,"n_rows":37,"n_cols":8,"rows_kept":37,"cut":false,"hidden":false,"merged":[]}
[null,"階級","姓","名","ふりがな","学校名","学年","段位"]
[1,{"$f":"_xlfn._xlws.SORT(_xlfn._xlws.FILTER('申込選手一覧（個人）'!B2:J37,('申込選手一覧（個人）'!B2:B37<>\"\")+('申込選手一覧（個人）'!C2:C37<>\"\"))&\"\",1)","v":{"$error":"#VALUE!"}}]
[2]
[3]
[4]
[5]
[6]
[7]
[8]
[9]
[10]
[11]
[12]
[13]
[14]
[15]
[16]
[17]
[18]
[19]
[20]
[21]
[22]
[23]
[24]
[25]
[26]
[27]
[28]
[29]
[30]
[31]
[32]
[33]
[34]
[35]
[36]